bitfinex-derivatives/quotes_BTCF0:USTF0_20250209
["timestamp","ask_amount","ask_price","bid_price","bid_amount"]
[1739138917497,0.21422286,95131.0,95130.0,0.3916]
[1739138917998,0.21422286,95131.0,95127.0,0.00015763]
[1739138917999,0.2102115,95128.0,95127.0,0.00015763]
[1739138918292,0.5710115,95128.0,95127.0,0.00015763]
[1739138918786,0.57502946,95128.0,95127.0,0.00015763]
[1739138920088,0.57302946,95128.0,95127.0,0.00015763]
[1739138920597,0.21222946,95128.0,95127.0,0.00015763]
[1739138920983,0.21222946,95128.0,95127.0,0.00215763]
[1739138921898,0.21222946,95128.0,95127.0,0.00015763]
[1739138922198,0.21222946,95128.0,95127.0,0.00215763]
[1739138922598,0.21366632,95128.0,95127.0,0.00215763]
[1739138923498,0.21366632,95128.0,95127.0,0.00015763]
[1739138924091,0.21366632,95128.0,95127.0,0.36095763]
[1739138925797,0.22394502,95128.0,95127.0,0.36095763]
[1739138926585,0.21366632,95128.0,95127.0,0.36095763]
[1739138927886,0.21510318,95128.0,95127.0,0.36095763]
[1739138928890,0.00689168,95128.0,95127.0,0.36095763]
[1739138929097,0.2101505,95156.0,95145.0,0.210174]
[1739138929294,1e-08,95146.0,95145.0,0.931774]
[1739138930299,0.2101014,95178.0,95160.0,0.21014]
[1739138930503,0.2101014,95178.0,95168.0,0.3608]
[1739138930705,0.210058,95198.0,95178.0,0.2100999]
[1739138931001,0.210058,95198.0,95179.0,0.3608]
[1739138931200,0.210058,95198.0,95187.0,0.3608]
[1739138931601,0.00015763,95193.0,95187.0,0.3608]
[1739138932105,0.22233006,95188.0,95187.0,0.3608]
[1739138932288,0.23073006,95188.0,95187.0,0.3608]
[1739138932493,0.25699006,95188.0,95187.0,0.3608]
[1739138933098,0.26742779,95188.0,95187.0,0.3618]
[1739138933698,0.26242779,95188.0,95187.0,0.3608]
[1739138934700,0.04709773,95188.0,95187.0,0.3608]
[1739138937395,0.00015763,95193.0,95187.0,0.3608]
[1739138937795,0.00015763,95193.0,95188.0,0.4198]
[1739138938103,0.00015763,95193.0,95188.0,0.8343]
[1739138939409,0.00015763,95193.0,95179.0,0.3608]
[1739138939706,0.2100889,95184.0,95179.0,0.3608]
[1739138941003,0.2100939,95182.0,95179.0,0.3608]
[1739138941203,0.2100967,95180.0,95179.0,0.3608]
[1739138941404,0.002,95184.0,95161.0,0.6294379]
[1739138941706,0.2101077,95175.0,95165.0,0.210129]
[1739138941905,0.2101077,95175.0,95163.0,0.01071713]
[1739138943511,0.2101077,95175.0,95174.0,0.00115763]
[1739138944909,0.2100891,95184.0,95174.0,0.00115763]
[1739138945110,0.2100711,95192.0,95176.0,0.3608]
[1739138945411,0.36095763,95193.0,95180.0,0.2100953]
[1739138945812,0.00855763,95193.0,95187.0,0.3608]
[1739138946203,0.210078,95189.0,95187.0,0.3608]
[1739138946404,0.00855763,95193.0,95187.0,0.3608]
[1739138946800,0.00855763,95193.0,95188.0,0.4245]
[1739138946997,0.01255763,95193.0,95191.0,0.2100724]
[1739138947511,0.00855763,95193.0,95191.0,0.2100724]
[1739138949529,0.00855763,95193.0,95191.0,0.2140724]
[1739138949710,0.00855763,95193.0,95191.0,0.008]
[1739138949922,0.21862633,95193.0,95191.0,0.008]
[1739138950106,0.21862633,95193.0,95191.0,0.004]
[1739138950309,0.8174,95192.0,95191.0,0.008]
[1739138950703,0.2100742,95191.0,95174.0,0.00015763]
[1739138950910,0.210093,95182.0,95174.0,0.00015763]
[1739138952215,0.2598,95191.0,95181.0,0.3608]
[1739138952515,0.21067101,95192.0,95181.0,0.3608]
[1739138952719,0.00855763,95193.0,95189.0,0.3608]
[1739138953012,0.5798,95215.0,95191.0,0.2100708]
[1739138953013,0.2100326,95210.0,95191.0,0.2100708]
[1739138953218,0.2100515,95201.0,95191.0,0.3608]
[1739138953511,0.19081485,95210.0,95191.0,0.3608]
[1739138953707,0.2100693,95193.0,95191.0,0.3608]
[1739138954216,0.3608,95214.0,95191.0,0.3608]
[1739138954516,0.12720467,95210.0,95191.0,0.3608]
[1739138954706,0.3608,95214.0,95191.0,0.3608]
[1739138955018,0.3608,95214.0,95192.0,0.8408]
[1739138955220,0.2100548,95199.0,95192.0,0.8408]
[1739138956314,0.2100508,95201.0,95192.0,1.0548691]
[1739138956514,0.2100642,95195.0,95192.0,0.004]
[1739138956722,0.2100642,95195.0,95192.0,0.002]
[1739138956916,0.2100642,95195.0,95192.0,0.004]
[1739138957416,0.2100642,95195.0,95192.0,0.006]
[1739138957609,0.00637,95199.0,95192.0,0.006]
[1739138957805,0.00637,95199.0,95192.0,0.2160683]
[1739138958613,0.00637,95199.0,95193.0,0.3608]
[1739138958818,0.00637,95199.0,95196.0,0.2100608]
[1739138959815,0.00637,95199.0,95193.0,0.3608]
[1739138959816,0.00637,95199.0,95198.0,0.210057]
[1739138960612,0.00637,95199.0,95196.0,0.006]
[1739138961010,0.03263,95199.0,95196.0,0.006]
[1739138961823,0.03263,95199.0,95196.0,0.004]
[1739138962017,0.03263,95199.0,95193.0,0.3608]
[1739138962018,0.03263,95199.0,95198.0,0.002]
[1739138962213,0.03263,95199.0,95198.0,0.006]
[1739138962613,0.03263,95199.0,95197.0,0.2100571]
[1739138963318,0.03263,95199.0,95198.0,0.004]
[1739138963522,0.03263,95199.0,95198.0,0.006]
[1739138964015,0.03263,95199.0,95198.0,0.002]
[1739138965717,0.03263,95199.0,95198.0,0.004]
[1739138966427,0.03263,95199.0,95198.0,0.006]
[1739138966634,0.03263,95199.0,95198.0,0.002]
[1739138966925,0.03263,95199.0,95198.0,0.006]
[1739138967126,0.03263,95199.0,95198.0,0.004]
[1739138967328,0.03263,95199.0,95198.0,0.006]
[1739138969526,0.03263,95199.0,95198.0,0.004]
[1739138969728,0.03263,95199.0,95198.0,0.006]
[1739138971217,0.2100768,95189.0,95188.0,0.25157075]
[1739138972035,0.219,95189.0,95179.0,0.31254996]
[1739138972229,0.2100967,95180.0,95179.0,0.31254996]
[1739138973030,0.3608,95181.0,95179.0,0.31254996]
[1739138973219,0.219,95189.0,95179.0,0.31254996]
[1739138973626,0.219,95189.0,95185.0,0.3608]
[1739138974221,0.1,95200.0,95185.0,0.3608]
[1739138974422,0.1,95200.0,95198.0,0.3608]
[1739138975729,0.02726,95199.0,95198.0,0.3608]
[1739138976044,0.02826,95199.0,95198.0,0.3608]
[1739138976230,0.02726,95199.0,95198.0,0.3608]
[1739138976539,0.02826,95199.0,95198.0,0.3608]
[1739138976740,0.02869737,95199.0,95198.0,0.3608]
[1739138976924,0.02969737,95199.0,95198.0,0.3608]
[1739138977832,0.02869737,95199.0,95198.0,0.3608]
[1739138978423,0.02769737,95199.0,95198.0,0.3638]
[1739138979831,0.02769737,95199.0,95198.0,0.573857]
[1739138980731,0.02769737,95199.0,95198.0,0.572857]
[1739138981234,0.02769737,95199.0,95198.0,0.570857]
[1739138981436,0.02769737,95199.0,95198.0,0.573857]
[1739138982243,0.02769737,95199.0,95198.0,0.572857]
[1739138982941,0.02769737,95199.0,95198.0,0.3628]
[1739138983237,0.23775217,95199.0,95198.0,0.002]
[1739138983636,0.2100973,95180.0,95175.0,0.2101064]
[1739138983844,0.2100973,95180.0,95179.0,0.3608]
[1739138984632,0.00143737,95180.0,95179.0,0.3608]
[1739138984940,0.00143737,95180.0,95179.0,0.67334996]
[1739138985531,0.00143737,95180.0,95179.0,0.67634996]
[1739138985935,0.00143737,95180.0,95179.0,0.67334996]
[1739138986138,0.00143737,95180.0,95179.0,0.67634996]
[1739138986338,0.00143737,95180.0,95179.0,0.69073288]
[1739138987833,0.00782737,95180.0,95179.0,0.69073288]
[1739138988038,0.00782737,95180.0,95179.0,0.37818292]
[1739138988340,0.02626,95199.0,95198.0,0.210057]
[1739138988539,0.02626,95199.0,95198.0,0.570857]
[1739138989535,0.02826,95199.0,95198.0,0.570857]
[1739138989735,0.02826,95199.0,95198.0,0.877857]
[1739138990435,0.02626,95199.0,95198.0,0.877857]
[1739138991537,0.02626,95199.0,95198.0,0.8881542]
[1739138991739,0.02626,95199.0,95198.0,0.8891542]
[1739138992138,0.02626,95199.0,95198.0,0.8881542]
[1739138992332,0.02626,95199.0,95198.0,0.8891542]
[1739138994441,0.02626,95199.0,95198.0,0.8911542]
[1739138995537,0.02626,95199.0,95198.0,0.90592449]
[1739138996339,0.219,95225.0,95198.0,0.69586749]
[1739138996548,0.18416122,95247.0,95228.0,0.2099899]
[1739138996549,0.2099826,95232.0,95228.0,0.2099899]
[1739138996849,0.2099849,95231.0,95224.0,0.3608]
[1739138997234,0.2099849,95231.0,95228.0,0.209989]
[1739138997738,0.2099886,95229.0,95228.0,0.209989]
[1739138998734,0.2099886,95229.0,95224.0,0.3608]
[1739138998735,0.5427,95237.0,95236.0,0.2099732]
[1739138999352,0.219,95246.0,95235.0,0.3608]
[1739138999544,0.2099533,95245.0,95244.0,0.3608]
[1739138999940,0.219,95246.0,95244.0,0.3608]
[1739139000146,0.219,95246.0,95245.0,0.2099533]
[1739139000342,1.0378093,95256.0,95244.0,0.3608]
[1739139000550,1.0371293,95256.0,95254.0,0.3608]
[1739139002250,0.2099293,95256.0,95254.0,0.5707317]
[1739139002549,0.2129293,95256.0,95254.0,0.5707317]
[1739139002744,0.2169293,95256.0,95254.0,0.5707317]
[1739139003450,0.2169293,95256.0,95254.0,0.3608]
[1739139003646,0.2169293,95256.0,95244.0,0.3608]
[1739139003647,0.2099534,95245.0,95244.0,0.3608]
[1739139004251,0.2099534,95245.0,95244.0,0.5707556]
[1739139004553,0.2099426,95250.0,95248.0,0.2099461]
[1739139004746,0.2099426,95250.0,95244.0,0.3608]
[1739139004949,0.2099532,95246.0,95244.0,0.3608]
[1739139005347,0.3608,95245.0,95240.0,0.00015754]
[1739139005546,0.2099952,95226.0,95221.0,0.31254996]
[1739139006153,0.2100041,95222.0,95221.0,0.31254996]
[1739139006354,0.5708041,95222.0,95221.0,0.31254996]
[1739139006652,0.2100041,95222.0,95221.0,0.31254996]
[1739139006961,0.2100169,95217.0,95212.0,0.00015754]
[1739139007147,0.00143554,95222.0,95212.0,0.00015754]
[1739139007339,0.2100231,95214.0,95212.0,0.00015754]
[1739139007545,0.00143554,95222.0,95212.0,0.00015754]
[1739139007745,0.00143554,95222.0,95217.0,0.2100137]
[1739139008139,0.00143554,95220.0,95217.0,0.2100137]
[1739139008753,0.00143554,95220.0,95218.0,0.3608]
[1739139009153,0.00143554,95219.0,95218.0,0.3608]
[1739139010546,0.00143554,95219.0,95218.0,0.5708129]
[1739139010952,0.00143554,95219.0,95218.0,0.5738129]
[1739139011455,0.00015726,95231.0,95218.0,0.3608]
[1739139011752,0.00015726,95231.0,95230.0,0.5707864]
[1739139012851,6e-08,95231.0,95230.0,0.58542768]
[1739139013053,0.2898,95267.0,95254.0,0.2099314]
[1739139013351,0.2898,95267.0,95254.0,0.3608]
[1739139013557,0.2898,95267.0,95256.0,0.2099289]
[1739139013558,0.4997049,95267.0,95256.0,0.2099289]
[1739139014256,0.2099443,95250.0,95247.0,0.00015754]
[1739139015453,5.612e-05,95256.0,95247.0,0.00315754]
[1739139015653,5.612e-05,95256.0,95254.0,0.3608]
[1739139015951,5.612e-05,95256.0,95247.0,0.00315754]
[1739139016750,5.612e-05,95256.0,95247.0,0.21310554]
[1739139016954,0.00305612,95256.0,95247.0,0.21310554]
[1739139017446,0.00305612,95256.0,95249.0,0.2099437]
[1739139018356,5.612e-05,95256.0,95249.0,0.2099437]
[1739139018550,5.612e-05,95256.0,95247.0,0.00315754]
[1739139018757,0.2099467,95248.0,95247.0,0.00015754]
[1739139018963,0.2099997,95224.0,95223.0,0.36237502]
[1739139019356,0.2099837,95232.0,95223.0,0.36237502]
[1739139019556,0.2692,95239.0,95223.0,0.36237502]
[1739139020063,0.00143556,95231.0,95223.0,0.36237502]
[1739139020564,0.00143556,95231.0,95229.0,0.2099867]
[1739139021161,0.00015754,95241.0,95234.0,0.20854094]
[1739139021856,0.00015754,95241.0,95238.0,0.2099681]
[1739139022050,0.00015754,95241.0,95240.0,0.2099644]
[1739139024572,0.21012064,95241.0,95237.0,0.2099702]
[1739139024766,0.21012064,95241.0,95236.0,0.3608]
[1739139024767,0.21012064,95241.0,95238.0,0.2099677]
[1739139025654,0.00015754,95241.0,95239.0,0.2099658]
[1739139026358,0.00015754,95241.0,95240.0,0.2594]
[1739139027562,5.612e-05,95256.0,95241.0,0.2099609]
[1739139027757,5.612e-05,95256.0,95255.0,0.2099313]
[1739139028156,5.612e-05,95256.0,95255.0,0.5707313]
[1739139028960,0.00205612,95256.0,95255.0,0.5707313]
[1739139029157,0.02829612,95256.0,95255.0,0.5707313]
[1739139029565,0.02829612,95256.0,95255.0,0.58596971]
[1739139029759,0.2098665,95285.0,95255.0,0.37603841]
[1739139029965,0.2098708,95283.0,95268.0,0.5707012]
[1739139031056,0.209884,95277.0,95268.0,0.3608]
[1739139032664,0.224884,95277.0,95268.0,0.3618]
[1739139033165,0.2099004,95269.0,95268.0,0.3618]
[1739139033563,0.2099004,95269.0,95268.0,0.001]
[1739139034765,0.006,95269.0,95266.0,0.00015746]
[1739139034959,0.2099048,95267.0,95266.0,0.00015746]
[1739139036065,0.2099048,95267.0,95266.0,0.00115746]
[1739139036460,0.2159048,95267.0,95266.0,0.00115746]
[1739139037160,0.006,95267.0,95266.0,0.00115746]
[1739139037865,0.006,95267.0,95266.0,0.53455746]
[1739139037866,0.01,95267.0,95266.0,0.53455746]
[1739139038060,0.01,95267.0,95266.0,0.74446446]
[1739139038561,0.001,95267.0,95266.0,0.74346446]
[1739139038761,0.006,95267.0,95266.0,0.74446446]
[1739139039265,0.2577,95287.0,95266.0,0.53455746]
[1739139039574,0.2577,95287.0,95277.0,0.3608]
[1739139039773,0.2577,95287.0,95285.0,0.209865]
[1739139039972,0.2577,95287.0,95285.0,0.570665]
[1739139040466,0.2098489,95293.0,95288.0,0.2098585]
[1739139040965,0.00157502,95294.0,95285.0,0.3608]
[1739139041269,0.213861,95287.0,95285.0,0.3608]
[1739139041659,0.012,95287.0,95285.0,0.5706633]
[1739139041861,0.008,95287.0,95285.0,0.5706633]
[1739139042060,0.2188488,95293.0,95285.0,0.5706633]
[1739139042265,0.2188488,95293.0,95288.0,0.2098578]
[1739139042765,0.007,95287.0,95285.0,0.3618]
[1739139043172,0.209863,95286.0,95285.0,0.3618]
[1739139044672,0.209863,95286.0,95285.0,0.3608]
[1739139045167,0.003,95287.0,95286.0,0.209863]
[1739139046273,0.00157502,95294.0,95293.0,0.2098476]
[1739139047080,0.00157502,95294.0,95293.0,0.5706476]
[1739139047260,0.00274127,95294.0,95293.0,0.5706476]
[1739139048775,0.00274127,95294.0,95293.0,0.5736476]
[1739139050775,0.00374127,95294.0,95293.0,0.5736476]
[1739139052569,0.00432439,95294.0,95293.0,0.5736476]
[1739139053376,0.21416979,95294.0,95293.0,0.5736476]
[1739139054966,0.00432439,95294.0,95293.0,0.5736476]
[1739139055583,0.00274937,95294.0,95293.0,0.5736476]
[1739139056864,0.00174937,95294.0,95293.0,0.5736476]
[1739139060779,0.00174937,95294.0,95293.0,0.003]
[1739139061467,0.00174937,95294.0,95293.0,0.3638]
[1739139067873,0.00174937,95294.0,95293.0,0.3608]
[1739139068072,0.00174937,95294.0,95293.0,0.3638]
[1739139070785,0.1,95300.0,95293.0,0.3638]
[1739139070980,0.1,95300.0,95299.0,0.2098344]
[1739139072979,0.1,95300.0,95299.0,0.2108344]
[1739139073781,0.1,95300.0,95299.0,0.2098344]
[1739139073990,0.1,95300.0,95299.0,0.2108344]
[1739139074395,0.1,95300.0,95299.0,0.2118344]
[1739139074684,0.1,95300.0,95299.0,0.2108344]
[1739139074994,0.1,95300.0,95299.0,0.2118344]
[1739139075288,0.12623,95300.0,95299.0,0.2118344]
[1739139075486,0.12623,95300.0,95299.0,0.002]
[1739139075685,0.3360622,95300.0,95299.0,0.002]
[1739139076076,0.3360622,95300.0,95299.0,0.003]
[1739139076279,0.3360622,95300.0,95299.0,0.002]
[1739139076479,0.12623,95300.0,95299.0,0.003]
[1739139077180,0.12623,95300.0,95299.0,0.002]
[1739139078892,0.12623,95300.0,95299.0,0.003]
[1739139079985,0.12623,95300.0,95299.0,0.001]
[1739139080185,0.12623,95300.0,95299.0,0.003]
[1739139080591,0.09775304,95300.0,95299.0,0.001]
[1739139080781,0.09775304,95300.0,95299.0,0.003]
[1739139082194,0.09775304,95300.0,95299.0,0.001]
[1739139082396,0.09775304,95300.0,95299.0,0.003]
[1739139082790,0.09775304,95300.0,95299.0,0.001]
[1739139082991,0.09775304,95300.0,95299.0,0.003]
[1739139083484,0.09775304,95300.0,95299.0,0.002]
[1739139083689,0.255,95332.0,95323.0,0.2097816]
[1739139083983,0.255,95332.0,95325.0,0.2097762]
[1739139084188,0.255,95332.0,95317.0,0.3608]
[1739139084383,0.255,95332.0,95326.0,0.209774]
[1739139085897,0.20016122,95328.0,95326.0,0.210774]
[1739139086201,0.40993242,95328.0,95326.0,0.001]
[1739139086500,0.20016122,95328.0,95327.0,0.2097728]
[1739139087999,0.016,95328.0,95327.0,0.2097728]
[1739139088194,0.009,95328.0,95327.0,0.2097728]
[1739139088399,0.18573537,95341.0,95327.0,0.301]
[1739139088602,0.18573537,95341.0,95340.0,0.5705442]
[1739139088603,0.18416122,95341.0,95340.0,0.5705442]
[1739139088794,0.241,95358.0,95352.0,0.2097178]
[1739139089105,0.241,95358.0,95352.0,0.5705178]
[1739139089291,0.24415954,95359.0,95358.0,0.2097046]
[1739139089599,0.29900929,95372.0,95352.0,0.3608]
[1739139089600,0.29900929,95372.0,95356.0,0.3608]
[1739139089903,0.2096489,95384.0,95375.0,0.2096651]
[1739139090095,0.2096503,95383.0,95376.0,0.11348]
[1739139090298,0.2096628,95377.0,95376.0,0.11348]
[1739139090601,0.36051615,95378.0,95376.0,0.11348]
[1739139091198,0.3096144,95400.0,95378.0,0.2096588]
[1739139091402,0.3096144,95400.0,95392.0,0.3608]
[1739139091802,0.1,95400.0,95392.0,0.3608]
[1739139092795,0.109,95400.0,95392.0,0.3618]
[1739139092997,0.109,95400.0,95397.0,0.3608]
[1739139093191,0.03929837,95400.0,95397.0,0.3608]
[1739139094599,0.03929837,95400.0,95397.0,0.3618]
[1739139095007,0.03429837,95400.0,95397.0,0.37348614]
[1739139095599,0.03429837,95400.0,95397.0,0.37248614]
[1739139096605,0.7953,95428.0,95397.0,0.37248614]
[1739139096804,0.7953,95428.0,95418.0,0.12687302]
[1739139097106,0.7953,95428.0,95426.0,0.3608]
[1739139097708,0.8023,95428.0,95426.0,0.3608]
[1739139097917,0.007,95428.0,95426.0,0.3608]
[1739139098615,0.2749,95427.0,95426.0,0.3608]
[1739139099204,0.2749,95427.0,95426.0,0.3618]
[1739139099510,0.11762601,95427.0,95426.0,0.3618]
[1739139099702,0.014,95428.0,95426.0,0.3608]
[1739139099902,0.007,95427.0,95426.0,0.3618]
[1739139100103,0.007,95427.0,95426.0,0.3628]
[1739139100302,0.37197302,95450.0,95426.0,0.3628]
[1739139100303,0.2451,95450.0,95426.0,0.3628]
[1739139100609,0.2803,95461.0,95448.0,0.2095061]
[1739139100804,0.12687302,95460.0,95446.0,0.3608]
[1739139101108,0.2803,95461.0,95446.0,0.3608]
[1739139101411,0.2803,95461.0,95447.0,0.11328]
[1739139101604,0.2451,95469.0,95460.0,0.3608]
[1739139101802,0.2451,95469.0,95468.0,0.3608]
[1739139102005,0.2451,95469.0,95463.0,0.3608]
[1739139102214,0.2094677,95466.0,95449.0,0.3608]
[1739139102416,0.2094677,95466.0,95456.0,0.00015719]
[1739139102613,0.2541,95468.0,95456.0,0.00015719]
[1739139102806,0.2094868,95458.0,95456.0,0.00015719]
[1739139103006,0.259,95457.0,95456.0,0.00015719]
[1739139103206,0.2541,95468.0,95456.0,0.00015719]
[1739139103406,0.2094656,95467.0,95456.0,0.00015719]
[1739139103614,0.2471,95469.0,95464.0,0.3608]
[1739139104914,0.002,95469.0,95464.0,0.3608]
[1739139105216,0.259,95476.0,95465.0,0.2094695]
[1739139105410,0.2094261,95485.0,95472.0,0.3608]
[1739139106021,0.2094307,95483.0,95472.0,0.3608]
[1739139106208,0.209435,95481.0,95472.0,0.3608]
[1739139106712,0.2541,95486.0,95480.0,0.3608]
[1739139107224,0.2541,95486.0,95481.0,0.01622512]
[1739139107515,0.2541,95486.0,95482.0,0.01622512]
[1739139107710,0.2541,95486.0,95480.0,0.3608]
[1739139107910,0.2541,95486.0,95481.0,0.01622826]
[1739139108112,0.2541,95486.0,95482.0,0.01622826]
[1739139108420,0.2541,95486.0,95483.0,0.01622826]
[1739139108617,0.2541,95486.0,95480.0,0.3608]
[1739139108618,0.463524,95486.0,95484.0,0.01622826]
[1739139108809,0.463524,95486.0,95485.0,0.01622826]
[1739139109119,0.1491613,95486.0,95485.0,0.01622826]
[1739139109317,0.1491613,95486.0,95485.0,0.04242463]
[1739139109817,0.1491613,95486.0,95485.0,0.01622826]
[1739139110015,0.1491613,95486.0,95485.0,0.01722826]
[1739139110219,0.1491613,95486.0,95485.0,0.001]
[1739139110408,0.4491613,95486.0,95485.0,0.001]
[1739139110917,0.209424,95486.0,95485.0,0.001]
[1739139111318,0.30698273,95487.0,95485.0,0.001]
[1739139112015,0.30698273,95487.0,95484.0,0.001]
[1739139112215,0.30698273,95487.0,95485.0,0.001]
[1739139113216,0.2094235,95486.0,95485.0,0.001]
[1739139114737,0.2435,95489.0,95485.0,0.001]
[1739139116838,0.209406,95494.0,95485.0,0.001]
[1739139117843,0.5701953,95499.0,95485.0,0.001]
[1739139118144,0.2094088,95493.0,95486.0,0.47876512]
[1739139118329,0.3608,95499.0,95486.0,0.47876512]
[1739139118535,0.2094088,95493.0,95486.0,0.47876512]
[1739139118845,0.1,95500.0,95487.0,0.01515662]
[1739139119037,0.1,95500.0,95486.0,0.47876512]
[1739139119236,0.1,95500.0,95487.0,1.76331956]
[1739139119441,0.1,95500.0,95488.0,0.01515705]
[1739139119744,0.1,95500.0,95489.0,0.01515705]
[1739139119745,0.2093952,95499.0,95489.0,0.01515705]
[1739139119938,0.2093952,95499.0,95487.0,1.74876251]
[1739139119939,0.2094104,95492.0,95487.0,1.75176251]
[1739139120143,0.2094104,95492.0,95488.0,0.01529405]
[1739139120144,0.5317,95491.0,95488.0,0.01529405]
[1739139120344,0.5317,95491.0,95487.0,1.75772251]
[1739139120540,0.5317,95491.0,95487.0,1.75716251]
[1739139121038,0.2094188,95489.0,95487.0,1.75716251]
[1739139121244,0.2094188,95489.0,95460.0,0.12687302]
[1739139121245,0.3608,95488.0,95459.0,0.3608]
[1739139121442,0.12687302,95470.0,95457.0,0.2648]
[1739139122037,0.48767302,95470.0,95443.0,0.5162]
[1739139122233,0.2095115,95446.0,95444.0,0.268]
[1739139122437,0.2095178,95443.0,95442.0,0.43592234]
[1739139122844,0.5703178,95443.0,95442.0,0.43592234]
[1739139123543,0.3608,95443.0,95435.0,0.0001571]
[1739139123849,0.3608,95443.0,95426.0,0.94719382]
[1739139123850,0.2095529,95427.0,95426.0,0.94719382]
[1739139124144,0.2095565,95426.0,95403.0,0.6255]
[1739139124446,0.3608,95427.0,95403.0,0.6255]
[1739139124447,0.3608,95414.0,95403.0,0.3608]
[1739139125054,0.18990727,95413.0,95403.0,0.3608]
[1739139125240,0.00015719,95422.0,95403.0,0.36095719]
[1739139125745,0.00015719,95422.0,95421.0,0.3608]
[1739139125945,0.00015719,95422.0,95421.0,0.5703661]
[1739139126551,0.3608,95436.0,95421.0,0.8703661]
[1739139126755,0.3608,95436.0,95429.0,0.3608]
[1739139127637,0.18990727,95440.0,95429.0,0.3608]
[1739139127949,0.18990727,95440.0,95439.0,0.3608]
[1739139128147,0.00015582,95442.0,95439.0,0.3608]
[1739139129753,0.003,95440.0,95430.0,0.3608]
[1739139129942,0.19290727,95440.0,95430.0,0.3608]
[1739139130342,0.003,95440.0,95439.0,0.3608]
[1739139130545,0.00215582,95442.0,95439.0,0.3608]
[1739139130751,0.3608,95462.0,95452.0,0.2094968]
[1739139130949,0.55070727,95462.0,95454.0,0.3608]
[1739139131145,0.209508,95448.0,95429.0,0.2095469]
[1739139131347,0.2094845,95459.0,95447.0,0.2095087]
[1739139131647,0.006,95442.0,95440.0,0.2095243]
[1739139131844,0.18990727,95460.0,95449.0,0.2095031]
[1739139132040,0.18990727,95460.0,95454.0,0.3608]
[1739139134247,0.2095024,95450.0,95449.0,0.002]
[1739139135151,0.2095156,95444.0,95443.0,0.00015719]
[1739139136242,0.47512,95450.0,95443.0,0.00315719]
[1739139136554,0.02618,95460.0,95459.0,0.2094827]
[1739139136761,0.02618,95460.0,95443.0,0.00615719]
[1739139136762,0.02618,95460.0,95457.0,0.3608]
[1739139137050,0.2095096,95447.0,95444.0,0.5344]
[1739139137453,0.2095096,95447.0,95444.0,0.2677]
[1739139138341,0.18990727,95454.0,95443.0,0.00615719]
[1739139138656,0.2095156,95444.0,95443.0,0.00215719]
[1739139139056,0.2095156,95444.0,95443.0,0.00015719]
[1739139140958,0.2095156,95444.0,95443.0,0.00315719]
[1739139141457,0.18990727,95470.0,95443.0,0.00315719]
[1739139141758,0.2094651,95468.0,95449.0,0.5703035]
[1739139142059,0.2094829,95459.0,95449.0,0.5703035]
[1739139142762,0.18479398,95455.0,95449.0,0.5703035]
[1739139142948,0.18479398,95455.0,95450.0,0.2095003]
[1739139143847,0.2095015,95451.0,95449.0,0.001]
[1739139145353,0.2095156,95444.0,95443.0,0.00015719]
[1739139145555,0.5703156,95444.0,95443.0,0.00015719]
[1739139145758,0.2095156,95444.0,95443.0,0.00015719]
[1739139146763,0.21124,95444.0,95443.0,0.00215719]
[1739139146966,0.57204,95444.0,95443.0,0.00215719]
[1739139147659,0.2095441,95431.0,95418.0,0.2798]
[1739139147860,0.3625244,95444.0,95418.0,0.2798]
[1739139147861,0.3608,95432.0,95418.0,0.2798]
[1739139148057,0.18990727,95430.0,95418.0,0.2798]
[1739139148373,0.2095683,95420.0,95418.0,0.2798]
[1739139148756,0.0017244,95419.0,95418.0,0.2798]
[1739139149352,0.2095727,95418.0,95416.0,0.2407]
[1739139149856,0.0017244,95417.0,95416.0,0.2407]
[1739139151159,0.0017244,95417.0,95416.0,0.2467]
[1739139151968,0.00315894,95417.0,95416.0,0.2457]
[1739139152864,0.00315894,95417.0,95416.0,0.2477]
[1739139153661,0.00315894,95417.0,95416.0,0.007]
[1739139153861,0.00315894,95417.0,95416.0,0.002]
[1739139154066,0.00315894,95417.0,95416.0,0.006]
[1739139154567,0.00315894,95417.0,95395.0,0.4712223]
[1739139154762,0.3608,95410.0,95395.0,0.4712223]
[1739139155061,0.36395894,95410.0,95395.0,0.4712223]
[1739139155258,0.36395894,95410.0,95395.0,0.2616]
[1739139155467,0.209621,95396.0,95395.0,0.2616]
[1739139155962,0.2096276,95393.0,95392.0,0.273]
[1739139156270,0.209632,95391.0,95386.0,0.00157232]
[1739139157158,0.00315894,95389.0,95386.0,0.00157232]
[1739139157956,0.00315894,95389.0,95386.0,0.00757232]
[1739139158152,0.00315894,95388.0,95386.0,0.00757232]
[1739139158571,0.21279854,95388.0,95386.0,0.006]
[1739139158873,0.3608,95387.0,95386.0,0.008]
[1739139159166,0.36395894,95387.0,95386.0,0.008]
[1739139159361,0.36395894,95387.0,95386.0,0.006]
[1739139159563,0.36395894,95387.0,95377.0,0.19475719]
[1739139159762,0.36395894,95387.0,95386.0,0.006]
[1739139159763,0.00315894,95387.0,95386.0,0.006]
[1739139160068,0.00315894,95387.0,95386.0,0.008]
[1739139160252,0.36395894,95387.0,95386.0,0.008]
[1739139160457,0.36395894,95387.0,95386.0,0.002]
[1739139160658,0.36395894,95387.0,95386.0,0.004]
[1739139161364,0.36395894,95387.0,95377.0,0.19491438]
[1739139161665,0.2096605,95378.0,95377.0,0.19691438]
[1739139161861,0.5704605,95378.0,95377.0,0.19691438]
[1739139162062,0.5704605,95378.0,95357.0,0.3608]
[1739139162063,0.36395894,95378.0,95357.0,0.3608]
[1739139162256,0.3608,95359.0,95343.0,0.3608]
[1739139162459,0.2097177,95352.0,95351.0,0.3608]
[1739139163267,0.21287664,95352.0,95351.0,0.3608]
[1739139163955,0.21287664,95352.0,95351.0,0.3648]
[1739139164162,0.57367664,95352.0,95351.0,0.004]
[1739139164773,0.36395894,95352.0,95344.0,0.2553]
[1739139164965,0.2097331,95345.0,95344.0,0.2553]
[1739139165161,0.21289204,95345.0,95344.0,0.2553]
[1739139165871,0.21289204,95345.0,95344.0,0.2573]
[1739139166470,0.00015728,95361.0,95344.0,0.6171]
[1739139166771,0.2097089,95356.0,95355.0,0.3608]
[1739139167068,0.2097089,95356.0,95344.0,0.6221]